[Event "Live Chess"]
[Site "Chess.com"]
[Date "2023.05.21"]
[Round "-"]
[White "CeladonFish"]
[Black "Shepherds_Pie"]
[Result "0-1"]
[WhiteElo "1073"]
[BlackElo "1946"]
[TimeControl "300"]
[EndTime "2:59:31 PDT"]
[Termination "Shepherds_Pie won by resignation"]

1. d4 {[%clk 0:04:59]} 1... d5 {[%clk 0:04:58.6]} 2. c4 {[%clk 0:04:57]} 2... e6
{[%clk 0:04:57.3]} 3. Nc3 {[%clk 0:04:55.3]} 3... c5 {[%clk 0:04:56]} 4. cxd5
{[%clk 0:04:53.8]} 4... cxd4 {[%clk 0:04:54.8]} 5. Qa4+ {[%clk 0:04:51.8]} 5...
Bd7 {[%clk 0:04:53.3]} 6. Qxd4 {[%clk 0:04:49.8]} 6... exd5 {[%clk 0:04:51.9]}
7. Nxd5 {[%clk 0:04:47]} 7... Nc6 {[%clk 0:04:50]} 8. Qf4 {[%clk 0:04:37.9]}
8... Qa5+ {[%clk 0:04:36.4]} 9. Bd2 {[%clk 0:04:36]} 9... Qxd5 {[%clk
0:04:34.4]} 10. Nf3 {[%clk 0:04:29.2]} 10... Nf6 {[%clk 0:04:32.4]} 11. Rd1
{[%clk 0:04:22.8]} 11... Bd6 {[%clk 0:04:30.9]} 12. Qg5 {[%clk 0:04:18.3]} 12...
Qxg5 {[%clk 0:04:28.1]} 13. Nxg5 {[%clk 0:04:18.2]} 13... Be7 {[%clk 0:04:22.2]}
14. Bc3 {[%clk 0:04:10.5]} 14... h6 {[%clk 0:04:19]} 15. Nf3 {[%clk 0:04:07.4]}
15... Be6 {[%clk 0:04:16]} 16. Rd4 {[%clk 0:04:03.7]} 16... Nxd4 {[%clk
0:04:14.3]} 0-1

[Event "Live Chess"]
[Site "Chess.com"]
[Date "2023.05.21"]
[Round "-"]
[White "VovaOvchar1990"]
[Black "martynstanley"]
[Result "1-0"]
[WhiteElo "1226"]
[BlackElo "1006"]
[TimeControl "300"]
[EndTime "2:59:33 PDT"]
[Termination "VovaOvchar1990 won by checkmate"]

1. g3 {[%clk 0:04:55.1]} 1... e6 {[%clk 0:04:59.1]} 2. Bg2 {[%clk 0:04:54.6]}
2... d5 {[%clk 0:04:58]} 3. Nf3 {[%clk 0:04:53.8]} 3... c5 {[%clk 0:04:57.2]} 4.
Ne5 {[%clk 0:04:52.5]} 4... Nc6 {[%clk 0:04:56.2]} 5. Nxc6 {[%clk 0:04:51.1]}
5... bxc6 {[%clk 0:04:55.2]} 6. d4 {[%clk 0:04:50]} 6... Bb7 {[%clk 0:04:53.7]}
7. e3 {[%clk 0:04:44.8]} 7... Qb6 {[%clk 0:04:52]} 8. O-O {[%clk 0:04:43.2]}
8... cxd4 {[%clk 0:04:50.6]} 9. exd4 {[%clk 0:04:41.1]} 9... Bb4 {[%clk
0:04:48.7]} 10. c3 {[%clk 0:04:39.1]} 10... Bd6 {[%clk 0:04:46.6]} 11. a3 {[%clk
0:04:36.5]} 11... c5 {[%clk 0:04:45.8]} 12. Be3 {[%clk 0:04:28.2]} 12... cxd4
{[%clk 0:04:41.8]} 13. Bxd4 {[%clk 0:04:26.2]} 13... Bc5 {[%clk 0:04:40.7]} 14.
Bxg7 {[%clk 0:04:23]} 14... O-O-O {[%clk 0:04:36.6]} 15. Bxh8 {[%clk 0:04:21]}
15... Ne7 {[%clk 0:04:36.2]} 16. Bf6 {[%clk 0:04:19]} 16... h5 {[%clk
0:04:33.7]} 17. Bxe7 {[%clk 0:04:17.2]} 17... Bxe7 {[%clk 0:04:32]} 18. Qxh5
{[%clk 0:04:15.1]} 18... d4 {[%clk 0:04:25.7]} 19. cxd4 {[%clk 0:04:11.9]} 19...
Bxg2 {[%clk 0:04:24.1]} 20. Kxg2 {[%clk 0:04:09.1]} 20... Qc6+ {[%clk
0:04:23.3]} 21. Kg1 {[%clk 0:04:06.8]} 21... Rxd4 {[%clk 0:04:21.4]} 22. Qh8+
{[%clk 0:03:55.1]} 22... Kd7 {[%clk 0:04:19.9]} 23. Qxd4+ {[%clk 0:03:51.7]}
23... Bd6 {[%clk 0:04:17.3]} 24. Nc3 {[%clk 0:03:46]} 24... e5 {[%clk
0:04:16.1]} 25. Qg4+ {[%clk 0:03:43.4]} 25... Kc7 {[%clk 0:04:14.2]} 26. Rac1
{[%clk 0:03:41.2]} 26... Kb7 {[%clk 0:04:12.1]} 27. Qg7 {[%clk 0:03:32.4]} 27...
Qc7 {[%clk 0:04:08.8]} 28. Nb5 {[%clk 0:03:27.2]} 28... Qe7 {[%clk 0:04:06]} 29.
Nxd6+ {[%clk 0:03:22.2]} 29... Qxd6 {[%clk 0:04:04.6]} 30. Qxf7+ {[%clk
0:03:20.8]} 30... Ka6 {[%clk 0:04:04]} 31. Qe8 {[%clk 0:03:07.1]} 31... Qb6
{[%clk 0:04:00.8]} 32. Rc6 {[%clk 0:03:04.8]} 32... e4 {[%clk 0:03:57.7]} 33.
Rxb6+ {[%clk 0:03:03]} 33... axb6 {[%clk 0:03:57.2]} 34. Qxe4 {[%clk 0:03:01.5]}
34... Ka5 {[%clk 0:03:55.8]} 35. b4+ {[%clk 0:02:51.7]} 35... Ka4 {[%clk
0:03:54.6]} 36. Qc6+ {[%clk 0:02:47.1]} 36... b5 {[%clk 0:03:54]} 37. Qa6+
{[%clk 0:02:40.4]} 37... Kb3 {[%clk 0:03:52.6]} 38. Rb1+ {[%clk 0:02:33.1]}
38... Kc4 {[%clk 0:03:51.4]} 39. Qc6+ {[%clk 0:02:29.5]} 39... Kd3 {[%clk
0:03:50]} 40. Rd1+ {[%clk 0:02:27]} 40... Ke2 {[%clk 0:03:48.9]} 41. Qf3+ {[%clk
0:02:24.8]} 41... Kxf3 {[%clk 0:03:45.3]} 42. Rd5 {[%clk 0:02:23.6]} 42... Ke2
{[%clk 0:03:43.7]} 43. Rxb5 {[%clk 0:02:22.7]} 43... Kd2 {[%clk 0:03:43.3]} 44.
a4 {[%clk 0:02:21.5]} 44... Kc3 {[%clk 0:03:42.9]} 45. a5 {[%clk 0:02:21.1]}
45... Kb3 {[%clk 0:03:41.8]} 46. a6 {[%clk 0:02:20.1]} 46... Kc4 {[%clk
0:03:41.1]} 47. Rb8 {[%clk 0:02:17.9]} 47... Kb3 {[%clk 0:03:38.2]} 48. a7
{[%clk 0:02:17.4]} 48... Kb2 {[%clk 0:03:37.6]} 49. a8=Q {[%clk 0:02:15.8]}
49... Kb3 {[%clk 0:03:37.1]} 50. h4 {[%clk 0:02:14.8]} 50... Kb2 {[%clk
0:03:35.9]} 51. b5 {[%clk 0:02:13.4]} 51... Kb3 {[%clk 0:03:35.3]} 52. b6 {[%clk
0:02:12.9]} 52... Kb4 {[%clk 0:03:34.7]} 53. b7 {[%clk 0:02:12.5]} 53... Kb5
{[%clk 0:03:34]} 54. Rc8 {[%clk 0:02:12]} 54... Kb6 {[%clk 0:03:33]} 55. b8=N
{[%clk 0:02:07.5]} 55... Kb5 {[%clk 0:03:30.6]} 56. h5 {[%clk 0:02:06.1]} 56...
Kb4 {[%clk 0:03:29.8]} 57. h6 {[%clk 0:02:05.3]} 57... Kb3 {[%clk 0:03:29.3]}
58. h7 {[%clk 0:02:04.5]} 58... Kb2 {[%clk 0:03:28.9]} 59. h8=B+ {[%clk
0:02:01.3]} 59... Kb1 {[%clk 0:03:28.4]} 60. Qa1# {[%clk 0:01:57.6]} 1-0

[Event "Live Chess"]
[Site "Chess.com"]
[Date "2023.05.21"]
[Round "-"]
[White "Ferrarifan27"]
[Black "JanMur7"]
[Result "1/2-1/2"]
[WhiteElo "2109"]
[BlackElo "1977"]
[TimeControl "300"]
[EndTime "2:59:39 PDT"]
[Termination "Game drawn by agreement"]

1. e4 {[%clk 0:04:59.1]} 1... e5 {[%clk 0:04:58.7]} 2. Nf3 {[%clk 0:04:57.7]}
2... Nc6 {[%clk 0:04:57.8]} 3. Bb5 {[%clk 0:04:56.6]} 3... Nf6 {[%clk
0:04:56.6]} 4. O-O {[%clk 0:04:54.3]} 4... Nxe4 {[%clk 0:04:55.8]} 5. d4 {[%clk
0:04:49.5]} 5... Nd6 {[%clk 0:04:54.7]} 6. Bxc6 {[%clk 0:04:47.6]} 6... dxc6
{[%clk 0:04:54.3]} 7. dxe5 {[%clk 0:04:46.2]} 7... Nf5 {[%clk 0:04:53.8]} 8.
Qxd8+ {[%clk 0:04:33.7]} 8... Kxd8 {[%clk 0:04:53.7]} 9. Nc3 {[%clk 0:04:25.9]}
9... Ne7 {[%clk 0:04:49.4]} 10. Bg5 {[%clk 0:04:20.6]} 10... h6 {[%clk
0:04:45.9]} 11. Rad1+ {[%clk 0:04:18.7]} 11... Ke8 {[%clk 0:04:44.7]} 12. Be3
{[%clk 0:04:17.1]} 12... Bf5 {[%clk 0:04:41.5]} 13. Rd2 {[%clk 0:04:13.7]} 13...
Ng6 {[%clk 0:04:37.3]} 14. Nd4 {[%clk 0:04:07.3]} 14... Bd7 {[%clk 0:04:33.3]}
15. f4 {[%clk 0:04:01.5]} 15... Bc5 {[%clk 0:04:22.5]} 16. Nf5 {[%clk
0:03:57.5]} 16... Bxf5 {[%clk 0:03:59.1]} 17. Bxc5 {[%clk 0:03:55.1]} 17... b6
{[%clk 0:03:57.3]} 18. Be3 {[%clk 0:03:52.5]} 18... Rd8 {[%clk 0:03:45.7]} 19.
Rfd1 {[%clk 0:03:49.6]} 19... Rxd2 {[%clk 0:03:42.3]} 20. Rxd2 {[%clk
0:03:48.7]} 20... Ke7 {[%clk 0:03:37.2]} 21. h3 {[%clk 0:03:41.9]} 21... h5
{[%clk 0:03:36.1]} 22. Ne2 {[%clk 0:03:34.6]} 22... Rd8 {[%clk 0:03:25.3]} 23.
Nd4 {[%clk 0:03:32.6]} 23... Bd7 {[%clk 0:03:20.8]} 24. Kf2 {[%clk 0:03:25.4]}
24... c5 {[%clk 0:03:18.3]} 25. Nb3 {[%clk 0:03:22]} 25... Bf5 {[%clk
0:03:11.7]} 26. Rxd8 {[%clk 0:03:12.5]} 26... Kxd8 {[%clk 0:03:11.6]} 27. c3
{[%clk 0:03:11.8]} 27... Be6 {[%clk 0:03:06.7]} 28. Nc1 {[%clk 0:03:08.7]} 28...
Ne7 {[%clk 0:03:04.3]} 29. a3 {[%clk 0:03:06.7]} 29... Nd5 {[%clk 0:02:55.3]}
30. Ne2 {[%clk 0:03:05]} 30... Nxe3 {[%clk 0:02:52.6]} 31. Kxe3 {[%clk
0:03:02.5]} 31... Bd5 {[%clk 0:02:50]} 32. g4 {[%clk 0:03:01.3]} 32... Bg2
{[%clk 0:02:42.6]} 33. Ng1 {[%clk 0:02:53.7]} 33... g6 {[%clk 0:02:29.7]} 34.
Kf2 {[%clk 0:02:52.1]} 34... Bb7 {[%clk 0:02:27.4]} 35. gxh5 {[%clk 0:02:49.1]}
35... gxh5 {[%clk 0:02:26.2]} 36. Kg3 {[%clk 0:02:48.5]} 36... Ke7 {[%clk
0:02:10.7]} 37. Kh4 {[%clk 0:02:47]} 37... Ke6 {[%clk 0:02:09.7]} 38. Kxh5
{[%clk 0:02:46.2]} 38... Kf5 {[%clk 0:02:08.9]} 39. Kh6 {[%clk 0:02:33.5]} 39...
Kxf4 {[%clk 0:02:04.6]} 40. Kg7 {[%clk 0:02:32.8]} 40... Bd5 {[%clk 0:02:00.9]}
41. Kf6 {[%clk 0:02:30.3]} 41... Be6 {[%clk 0:01:55.6]} 42. Ne2+ {[%clk
0:02:17]} 42... Ke3 {[%clk 0:01:49.5]} 43. Ng3 {[%clk 0:02:14]} 43... Bxh3
{[%clk 0:01:38.8]} 44. Kxf7 {[%clk 0:02:12.1]} 44... Kd2 {[%clk 0:01:31.2]} 45.
e6 {[%clk 0:02:08.9]} 45... Kc2 {[%clk 0:01:25.5]} 46. e7 {[%clk 0:02:05.1]}
46... Bd7 {[%clk 0:01:23.8]} 47. Ne4 {[%clk 0:01:59.9]} 47... Kxb2 {[%clk
0:01:16.8]} 48. e8=Q {[%clk 0:01:59.1]} 48... Bxe8+ {[%clk 0:01:15.1]} 49. Kxe8
{[%clk 0:01:59]} 49... Kxa3 {[%clk 0:01:09.5]} 50. Kd7 {[%clk 0:01:58.2]} 50...
b5 {[%clk 0:01:05.8]} 51. Nxc5 {[%clk 0:01:50.5]} 51... b4 {[%clk 0:01:03.6]}
52. cxb4 {[%clk 0:01:41.7]} 52... Kxb4 {[%clk 0:01:03.5]} 53. Na6+ {[%clk
0:01:40.7]} 53... Kb5 {[%clk 0:01:01.2]} 54. Nxc7+ {[%clk 0:01:39]} 54... Kb6
{[%clk 0:01:00.6]} 55. Nd5+ {[%clk 0:01:35.6]} 1/2-1/2

[Event "Live Chess"]
[Site "Chess.com"]
[Date "2023.05.21"]
[Round "-"]
[White "hturner40"]
[Black "Tushinskiy"]
[Result "0-1"]
[WhiteElo "1814"]
[BlackElo "2151"]
[TimeControl "300"]
[EndTime "2:59:46 PDT"]
[Termination "Tushinskiy won on time"]

1. g3 {[%clk 0:04:54]} 1... d5 {[%clk 0:04:59.1]} 2. Nf3 {[%clk 0:04:53.1]} 2...
c6 {[%clk 0:04:59]} 3. Bg2 {[%clk 0:04:52.3]} 3... Nf6 {[%clk 0:04:58.4]} 4. O-O
{[%clk 0:04:50.7]} 4... Bg4 {[%clk 0:04:57.3]} 5. Ne5 {[%clk 0:04:42.7]} 5...
Bh5 {[%clk 0:04:55.9]} 6. c4 {[%clk 0:04:41.2]} 6... e6 {[%clk 0:04:54.5]} 7. d4
{[%clk 0:04:34.7]} 7... Bd6 {[%clk 0:04:52.9]} 8. Nc3 {[%clk 0:04:31.1]} 8...
Nbd7 {[%clk 0:04:50.7]} 9. f4 {[%clk 0:04:28.1]} 9... O-O {[%clk 0:04:48.9]} 10.
h3 {[%clk 0:04:24.1]} 10... Re8 {[%clk 0:04:45.2]} 11. g4 {[%clk 0:04:22.6]}
11... Bg6 {[%clk 0:04:43.8]} 12. e3 {[%clk 0:04:05]} 12... dxc4 {[%clk
0:04:38.5]} 13. Nxc4 {[%clk 0:03:59.8]} 13... Bc7 {[%clk 0:04:37.4]} 14. e4
{[%clk 0:03:51.7]} 14... b5 {[%clk 0:04:33.4]} 15. Ne5 {[%clk 0:03:36.5]} 15...
Nxe5 {[%clk 0:04:19.5]} 16. dxe5 {[%clk 0:03:26]} 16... b4 {[%clk 0:04:16.4]}
17. exf6 {[%clk 0:03:07.3]} 17... Qxf6 {[%clk 0:04:13.2]} 18. f5 {[%clk
0:02:58.7]} 18... bxc3 {[%clk 0:04:10.8]} 19. fxg6 {[%clk 0:02:51.1]} 19... Qxg6
{[%clk 0:04:00.9]} 20. bxc3 {[%clk 0:02:47.3]} 20... Rad8 {[%clk 0:03:56.7]} 21.
Qf3 {[%clk 0:02:38.4]} 21... Bb6+ {[%clk 0:03:52.6]} 22. Kh1 {[%clk 0:02:28.5]}
22... h6 {[%clk 0:03:49.1]} 23. h4 {[%clk 0:02:23]} 23... Rd7 {[%clk 0:03:44.1]}
24. h5 {[%clk 0:02:12.4]} 24... Qh7 {[%clk 0:03:42.3]} 25. Ba3 {[%clk
0:02:01.8]} 25... f6 {[%clk 0:03:32.7]} 26. Rad1 {[%clk 0:01:53.5]} 26... Rf7
{[%clk 0:03:31.3]} 27. e5 {[%clk 0:01:44.5]} 27... Qc2 {[%clk 0:03:14.5]} 28.
Qxc6 {[%clk 0:01:36.9]} 28... Rb8 {[%clk 0:03:08.7]} 29. Bd6 {[%clk 0:01:11.1]}
29... Rd8 {[%clk 0:03:06]} 30. Be4 {[%clk 0:00:54.8]} 30... Qe2 {[%clk
0:02:55.5]} 31. Bg6 {[%clk 0:00:41.9]} 31... Qxg4 {[%clk 0:02:47.1]} 32. Bxf7+
{[%clk 0:00:27.2]} 32... Kxf7 {[%clk 0:02:47]} 33. Qf3 {[%clk 0:00:23.3]} 33...
Qh4+ {[%clk 0:02:45.2]} 34. Kg2 {[%clk 0:00:21.1]} 34... f5 {[%clk 0:02:40.4]}
35. Qg3 {[%clk 0:00:04.1]} 35... Qxh5 {[%clk 0:02:33.9]} 36. Rh1 {[%clk
0:00:00.1]} 36... Qe2+ {[%clk 0:02:32]} 0-1

[Event "Live Chess"]
[Site "Chess.com"]
[Date "2023.05.21"]
[Round "-"]
[White "Biranidun"]
[Black "Davidagye"]
[Result "1-0"]
[WhiteElo "2539"]
[BlackElo "1670"]
[TimeControl "300"]
[EndTime "2:59:49 PDT"]
[Termination "Biranidun won by resignation"]

1. e4 {[%clk 0:04:58.9]} 1... Nf6 {[%clk 0:04:58.2]} 2. e5 {[%clk 0:04:57.7]}
2... Nd5 {[%clk 0:04:57]} 3. d4 {[%clk 0:04:57.3]} 3... d6 {[%clk 0:04:55.9]} 4.
Nf3 {[%clk 0:04:56.2]} 4... dxe5 {[%clk 0:04:53.2]} 5. Nxe5 {[%clk 0:04:56.1]}
5... c6 {[%clk 0:04:52.1]} 6. Be2 {[%clk 0:04:54.9]} 6... Bf5 {[%clk 0:04:49.3]}
7. O-O {[%clk 0:04:53.8]} 7... e6 {[%clk 0:04:46.8]} 8. c4 {[%clk 0:04:52.4]}
8... Nf6 {[%clk 0:04:43]} 9. Nc3 {[%clk 0:04:51.2]} 9... Nbd7 {[%clk 0:04:41.2]}
10. Nf3 {[%clk 0:04:50.5]} 10... Bd6 {[%clk 0:04:32.3]} 11. Nh4 {[%clk
0:04:49.1]} 11... Bg6 {[%clk 0:04:30.1]} 12. f4 {[%clk 0:04:45.5]} 12... O-O
{[%clk 0:04:26.5]} 13. Nxg6 {[%clk 0:04:44.8]} 13... hxg6 {[%clk 0:04:25.1]} 14.
Be3 {[%clk 0:04:44.4]} 14... a6 {[%clk 0:04:21.4]} 15. Bf3 {[%clk 0:04:43.3]}
15... Qc7 {[%clk 0:04:17.4]} 16. g3 {[%clk 0:04:41.7]} 16... c5 {[%clk
0:04:12.6]} 17. d5 {[%clk 0:04:39.4]} 17... exd5 {[%clk 0:04:07.8]} 18. Nxd5
{[%clk 0:04:37.1]} 18... Nxd5 {[%clk 0:04:01]} 19. Qxd5 {[%clk 0:04:37]} 19...
Nf6 {[%clk 0:03:59.1]} 20. Qxb7 {[%clk 0:04:34.6]} 20... Qxb7 {[%clk 0:03:57.5]}
21. Bxb7 {[%clk 0:04:34.5]} 21... Rab8 {[%clk 0:03:56.7]} 22. Bxa6 {[%clk
0:04:34]} 22... Rxb2 {[%clk 0:03:55.1]} 23. Rf2 {[%clk 0:04:20]} 23... Rfb8
{[%clk 0:03:50.8]} 24. Bb5 {[%clk 0:04:18.6]} 24... Rxf2 {[%clk 0:03:46.3]} 25.
Bxf2 {[%clk 0:04:18.5]} 25... Bf8 {[%clk 0:03:38.1]} 26. a4 {[%clk 0:04:16.8]}
26... Ne4 {[%clk 0:03:34.9]} 27. a5 {[%clk 0:04:15.4]} 27... Nxf2 {[%clk
0:03:31.3]} 28. Kxf2 {[%clk 0:04:15.3]} 28... Be7 {[%clk 0:03:30.6]} 29. a6
{[%clk 0:04:13.9]} 29... Bf6 {[%clk 0:03:23.5]} 30. a7 {[%clk 0:04:11.9]} 30...
Ra8 {[%clk 0:03:22.3]} 31. Bc6 {[%clk 0:04:05.9]} 31... Bd4+ {[%clk 0:03:18.7]}
32. Kf3 {[%clk 0:04:04.5]} 32... Bxa1 {[%clk 0:03:16.9]} 33. Bxa8 {[%clk
0:04:03.6]} 1-0

[Event "Live Chess"]
[Site "Chess.com"]
[Date "2023.05.21"]
[Round "-"]
[White "gmnorfolk"]
[Black "Rusty_Bridges"]
[Result "1-0"]
[WhiteElo "2122"]
[BlackElo "1509"]
[TimeControl "300"]
[EndTime "2:59:53 PDT"]
[Termination "gmnorfolk won by checkmate"]

1. d4 {[%clk 0:04:58.6]} 1... d5 {[%clk 0:04:57.2]} 2. c4 {[%clk 0:04:55.9]}
2... e6 {[%clk 0:04:55.6]} 3. Nc3 {[%clk 0:04:55.1]} 3... Nf6 {[%clk 0:04:54]}
4. cxd5 {[%clk 0:04:53.9]} 4... Nxd5 {[%clk 0:04:52.6]} 5. e4 {[%clk 0:04:52]}
5... Nxc3 {[%clk 0:04:51]} 6. bxc3 {[%clk 0:04:51.9]} 6... Be7 {[%clk
0:04:47.3]} 7. Bd3 {[%clk 0:04:49.8]} 7... Nc6 {[%clk 0:04:46.1]} 8. Nf3 {[%clk
0:04:48.2]} 8... O-O {[%clk 0:04:43.7]} 9. O-O {[%clk 0:04:47.7]} 9... b6 {[%clk
0:04:42.6]} 10. Qe2 {[%clk 0:04:44.4]} 10... Bb7 {[%clk 0:04:41.3]} 11. Rd1
{[%clk 0:04:42.4]} 11... Bf6 {[%clk 0:04:30.1]} 12. Bf4 {[%clk 0:04:32.5]} 12...
g6 {[%clk 0:04:28.3]} 13. Qe3 {[%clk 0:04:25.6]} 13... Re8 {[%clk 0:04:24.6]}
14. Bg5 {[%clk 0:04:21]} 14... Bxg5 {[%clk 0:04:21.2]} 15. Nxg5 {[%clk
0:04:19.4]} 15... h6 {[%clk 0:04:10.6]} 16. Nh3 {[%clk 0:04:11.3]} 16... Kh7
{[%clk 0:04:05.8]} 17. Nf4 {[%clk 0:04:07.7]} 17... e5 {[%clk 0:04:00]} 18. Nd5
{[%clk 0:04:06.1]} 18... Na5 {[%clk 0:03:51.8]} 19. Qf3 {[%clk 0:03:56.5]} 19...
Bxd5 {[%clk 0:03:47.9]} 20. exd5 {[%clk 0:03:53.6]} 20... Nb7 {[%clk 0:03:42.7]}
21. Qxf7+ {[%clk 0:03:51.1]} 21... Kh8 {[%clk 0:03:40.1]} 22. Qxg6 {[%clk
0:03:49.5]} 22... Qe7 {[%clk 0:03:36.8]} 23. Qxh6+ {[%clk 0:03:46.8]} 23... Kg8
{[%clk 0:03:36.1]} 24. Bb5 {[%clk 0:03:37.6]} 24... Rf8 {[%clk 0:03:33.4]} 25.
Rd3 {[%clk 0:03:33]} 25... Rf6 {[%clk 0:03:31.6]} 26. Rg3+ {[%clk 0:03:30.6]}
26... Kf7 {[%clk 0:03:29.6]} 27. Rg7+ {[%clk 0:03:28.6]} 27... Kf8 {[%clk
0:03:27.4]} 28. Qh8# {[%clk 0:03:27.1]} 1-0

[Event "Live Chess"]
[Site "Chess.com"]
[Date "2023.05.21"]
[Round "-"]
[White "LiamClery2020"]
[Black "RoaringKnights"]
[Result "1-0"]
[WhiteElo "1983"]
[BlackElo "1030"]
[TimeControl "300"]
[EndTime "2:59:58 PDT"]
[Termination "LiamClery2020 won by checkmate"]

1. e4 {[%clk 0:04:58.9]} 1... e5 {[%clk 0:04:57.8]} 2. Nc3 {[%clk 0:04:58.2]}
2... Bc5 {[%clk 0:04:56.5]} 3. Qg4 {[%clk 0:04:57.2]} 3... Qf6 {[%clk 0:04:47]}
4. Qg3 {[%clk 0:04:55.8]} 4... d6 {[%clk 0:04:44.2]} 5. Nd5 {[%clk 0:04:54.2]}
5... Qg6 {[%clk 0:04:35.3]} 6. Qxg6 {[%clk 0:04:50.7]} 6... hxg6 {[%clk
0:04:33.2]} 7. Nxc7+ {[%clk 0:04:50.6]} 7... Kd7 {[%clk 0:04:32.6]} 8. Nxa8
{[%clk 0:04:50.5]} 8... b6 {[%clk 0:04:31.6]} 9. Bb5+ {[%clk 0:04:48.3]} 9...
Kd8 {[%clk 0:04:30]} 10. Nf3 {[%clk 0:04:47.4]} 10... Bb7 {[%clk 0:04:29.4]} 11.
d3 {[%clk 0:04:45.7]} 11... Bxa8 {[%clk 0:04:28.6]} 12. Be3 {[%clk 0:04:45.2]}
12... Bxe3 {[%clk 0:04:27.2]} 13. fxe3 {[%clk 0:04:45.1]} 13... Nf6 {[%clk
0:04:24.4]} 14. O-O {[%clk 0:04:44]} 14... Bc6 {[%clk 0:04:22.2]} 15. Bxc6
{[%clk 0:04:42.5]} 15... Nxc6 {[%clk 0:04:21]} 16. Ng5 {[%clk 0:04:42.4]} 16...
Ke7 {[%clk 0:04:19.4]} 17. Rad1 {[%clk 0:04:40.5]} 17... Ng4 {[%clk 0:04:15.9]}
18. Rxf7+ {[%clk 0:04:37.1]} 18... Ke8 {[%clk 0:04:15]} 19. Rc7 {[%clk
0:04:35.6]} 19... Nxh2 {[%clk 0:04:12.2]} 20. Rxc6 {[%clk 0:04:33]} 20... Ng4
{[%clk 0:04:11.2]} 21. Rc8+ {[%clk 0:04:31.8]} 21... Kd7 {[%clk 0:04:08.2]} 22.
Rxh8 {[%clk 0:04:31.7]} 22... Nxe3 {[%clk 0:04:07.8]} 23. Rd2 {[%clk 0:04:30.2]}
23... Ng4 {[%clk 0:04:05]} 24. Rg8 {[%clk 0:04:28.7]} 24... Nf6 {[%clk
0:04:04.1]} 25. Rxg7+ {[%clk 0:04:27.8]} 25... Kc6 {[%clk 0:04:01.7]} 26. Rxg6
{[%clk 0:04:26.2]} 26... Nh5 {[%clk 0:04:00.6]} 27. d4 {[%clk 0:04:25.4]} 27...
Nf4 {[%clk 0:03:59.8]} 28. Rf6 {[%clk 0:04:24.4]} 28... Nh5 {[%clk 0:03:57.2]}
29. dxe5 {[%clk 0:04:24]} 29... Nxf6 {[%clk 0:03:52.1]} 30. exf6 {[%clk
0:04:23.9]} 30... Kd7 {[%clk 0:03:51.7]} 31. f7 {[%clk 0:04:23.8]} 31... Ke7
{[%clk 0:03:50.9]} 32. Rf2 {[%clk 0:04:23.3]} 32... Kf8 {[%clk 0:03:49.2]} 33.
Ne6+ {[%clk 0:04:23.2]} 33... Ke7 {[%clk 0:03:47.5]} 34. f8=Q+ {[%clk
0:04:23.1]} 34... Kxe6 {[%clk 0:03:46.7]} 35. Rf6+ {[%clk 0:04:23]} 35... Ke5
{[%clk 0:03:45.1]} 36. Qxd6+ {[%clk 0:04:22.9]} 36... Kxe4 {[%clk 0:03:44]} 37.
Rf4+ {[%clk 0:04:22.8]} 37... Ke3 {[%clk 0:03:43]} 38. Qd4+ {[%clk 0:04:22.7]}
38... Ke2 {[%clk 0:03:42]} 39. Rf2+ {[%clk 0:04:22.6]} 39... Ke1 {[%clk
0:03:41]} 40. Qd2# {[%clk 0:04:22.5]} 1-0

[Event "Live Chess"]
[Site "Chess.com"]
[Date "2023.05.21"]
[Round "-"]
[White "YrrriKharkiv"]
[Black "wot-not"]
[Result "1-0"]
[WhiteElo "2072"]
[BlackElo "1540"]
[TimeControl "300"]
[EndTime "3:00:00 PDT"]
[Termination "YrrriKharkiv won by resignation"]

1. e4 {[%clk 0:04:52.9]} 1... e6 {[%clk 0:04:58.9]} 2. d3 {[%clk 0:04:50.3]}
2... d5 {[%clk 0:04:58.1]} 3. Nc3 {[%clk 0:04:49.1]} 3... Nf6 {[%clk 0:04:51.6]}
4. Bg5 {[%clk 0:04:42.3]} 4... Bb4 {[%clk 0:04:48.6]} 5. e5 {[%clk 0:04:28.6]}
5... h6 {[%clk 0:04:47.3]} 6. Bd2 {[%clk 0:04:22.4]} 6... Nfd7 {[%clk
0:04:37.8]} 7. f4 {[%clk 0:04:20]} 7... c5 {[%clk 0:04:35.4]} 8. Nf3 {[%clk
0:04:17.3]} 8... Nc6 {[%clk 0:04:33.8]} 9. a3 {[%clk 0:04:13.2]} 9... Bxc3
{[%clk 0:04:31.9]} 10. Bxc3 {[%clk 0:04:11.6]} 10... d4 {[%clk 0:04:30]} 11. Bd2
{[%clk 0:04:10.5]} 11... f6 {[%clk 0:04:18.9]} 12. Be2 {[%clk 0:03:50.5]} 12...
fxe5 {[%clk 0:04:16.2]} 13. Nxe5 {[%clk 0:03:42.2]} 13... Ndxe5 {[%clk
0:04:15.3]} 14. fxe5 {[%clk 0:03:40.6]} 14... Nxe5 {[%clk 0:04:09.8]} 15. Bh5+
{[%clk 0:03:38.9]} 15... g6 {[%clk 0:04:08]} 16. O-O {[%clk 0:03:28.7]} 16...
Qe7 {[%clk 0:03:25.8]} 17. Qe2 {[%clk 0:03:13.3]} 17... Qd6 {[%clk 0:03:07.5]}
18. Bf4 {[%clk 0:03:07.9]} 18... gxh5 {[%clk 0:02:58.4]} 19. Bxe5 {[%clk
0:03:06.4]} 1-0

[Event "Live Chess"]
[Site "Chess.com"]
[Date "2023.05.21"]
[Round "-"]
[White "PetorPrydatko"]
[Black "RichardABates"]
[Result "0-1"]
[WhiteElo "355"]
[BlackElo "2076"]
[TimeControl "300"]
[EndTime "3:00:01 PDT"]
[Termination "RichardABates won by checkmate"]

1. e4 {[%clk 0:04:56]} 1... c5 {[%clk 0:04:58.1]} 2. Bc4 {[%clk 0:04:51.4]} 2...
e6 {[%clk 0:04:56.5]} 3. Nf3 {[%clk 0:04:42.1]} 3... a6 {[%clk 0:04:53.1]} 4.
Nc3 {[%clk 0:04:40.6]} 4... b5 {[%clk 0:04:51.2]} 5. Bb3 {[%clk 0:04:30]} 5...
c4 {[%clk 0:04:49.8]} 6. Bxc4 {[%clk 0:04:13.5]} 6... bxc4 {[%clk 0:04:48.4]} 7.
O-O {[%clk 0:04:08.7]} 7... Bb7 {[%clk 0:04:44.8]} 8. d4 {[%clk 0:04:02.9]} 8...
cxd3 {[%clk 0:04:43]} 9. cxd3 {[%clk 0:03:59.9]} 9... Nf6 {[%clk 0:04:41.6]} 10.
Qe1 {[%clk 0:03:47.4]} 10... Bb4 {[%clk 0:04:37.4]} 11. e5 {[%clk 0:03:42.8]}
11... Nd5 {[%clk 0:04:35.9]} 12. Bg5 {[%clk 0:03:30.7]} 12... Qa5 {[%clk
0:04:33.9]} 13. d4 {[%clk 0:03:16]} 13... Nxc3 {[%clk 0:04:26.7]} 14. Rc1 {[%clk
0:03:06.4]} 14... Nd5 {[%clk 0:04:18.4]} 15. Qd1 {[%clk 0:02:58.6]} 15... O-O
{[%clk 0:04:14.7]} 16. Be7 {[%clk 0:02:45.6]} 16... Bxe7 {[%clk 0:04:12.7]} 17.
Qe2 {[%clk 0:02:28.3]} 17... Nf4 {[%clk 0:04:10.6]} 18. Qe4 {[%clk 0:02:25.2]}
18... Bxe4 {[%clk 0:04:07.7]} 19. Rce1 {[%clk 0:02:16.8]} 19... Bxf3 {[%clk
0:04:05.6]} 20. gxf3 {[%clk 0:02:14.4]} 20... Qd5 {[%clk 0:04:03.4]} 21. Re3
{[%clk 0:01:54.1]} 21... Bg5 {[%clk 0:03:56.6]} 22. b3 {[%clk 0:01:48.2]} 22...
Nc6 {[%clk 0:03:53.7]} 23. Rd1 {[%clk 0:01:41.4]} 23... Nxd4 {[%clk 0:03:52.1]}
24. Red3 {[%clk 0:01:29.2]} 24... Nxf3+ {[%clk 0:03:46.9]} 25. Rxf3 {[%clk
0:01:22.9]} 25... Qxd1# {[%clk 0:03:44.4]} 0-1